Workbook

Sheet Expenses 2014-15& Budget -15-16
B2: DBRT 204-15 and 15-16
B4: Head | C4: Actuals incomeDBRT 2014-15 | D4: Projected 2015-16 | E4: Head | F4: Actuals expenses DBRT 2014-15 | G4: Projected expenses 2015-16
B6: Income | E6: Expenses
D7: -75602.16 | E7: i) Salary of DBRT staff | F7: 1181868 | G7: 1307017
A8: 1 | B8: Asha | C8: 1045000 | D8: =C8*1.1 -> 1149500 | E8: ii) Salary statutory (Gratuity and PF) | F8: 210834 | G8: 0
A9: 2 | B9: Fees from students | C9: 431500 | D9: =C9*1.1 -> 474650 | E9: iii) Material | F9: =64737+403433 -> 468170 | G9: =F9*1.1 -> 514987
A10: 3 | B10: IBT fees | C10: 37000 | E10: iv) Short term training program expenses (food and lodging) | G10: =F10*1.1 -> 0
A11: 4 | B11: Individual DONATIONS | C11: =2000+1551+10000+6000+800+5000+5000+1000+9000+15000 -> 55351 | E11: iii) Travel | F11: =87356+36300+10265 -> 133921 | G11: 147313.1
A12: 5 | B12: Tata foundation | C12: 180000 | E12: iv) Internet / communication / stationary | F12: =7500+48400+8000 -> 63900 | G12: 70290
A13: 6 | B13: SPA foundation | C13: 460000 | E13: v) Electricity and water | F13: 43560 | G13: 72000
A14: 7 | B14: Eaton Foundation | D14: 1620000 | E14: vi) Maintainane and replacement | F14: =17191+24200+4449+3490+5433 -> 54763 | G14: 100000
A15: 8 | B15: Income from projects | C15: 485926.8 | E15: ix) DBRT Student Kitchen | F15: 349283 | G15: =F15*1.2 -> 419139.6 | H15: We expect cost of supplies will go up considerabley
A16: 9 | B16: Receivables from fees | C16: 75602.16 | E16: vii) Capital Expenses Hostel | F16: =21000+21417+64850 -> 107267 | G16: 200000 | H16: New computer purchase and CCTV expenses
E17: IX) Water Tanker cost (Rs.20000 * 9 month) | G17: 180000 | H17: Due to deficient rainfall. We expect severe drought this year
E18: viii) Admin/account overhead (6%) | F18: =SUM(F7:F16)*0.06 -> 156813.96 | G18: =SUM(G7:G17)*0.06 -> 180644.802
E19: ix) Contigencies | G19: 52758.5
B20: Total | C20: =SUM(C8:C18) -> 2770379.96 | D20: =SUM(D8:D18) -> 3244150 | F20: =SUM(F7:F18) -> 2770379.96 | G20: =SUM(G7:G19) -> 3244150.002
B23: Funds requested from Asha for education
B24: Fees collection expected 10% more than previous years

Sheet Salary of staff
B3: List of DBRT staff and their salaries
B5: Sr.No | C5: Name | F5: Qualification | H5: Monthly Salary with all benefits | I5: Annual Salary (Including PF+ Gratuity and statutary benefits)
B6: 1 | C6: Vishal Jagtap | F6: DBRT, BA | H6: 17282 | I6: 207380
B7: 2 | C7: Laxman Jadhav | F7: DBRT | H7: 15408 | I7: 184897
B8: 3 | C8: Suyog Wargade | F8: Diploma in Electricals | H8: 10556 | I8: 126676
B9: 4 | C9: Anita Pansare | F9: B.Tech(Food) | H9: 10556 | I9: 126676
B10: 5 | C10: Ravi Ghuge | F10: Diploma in Agriculture | H10: 9380 | I10: 112564
B11: 6 | C11: Anita Jangam | F11: M.Com | H11: 9767 | I11: 117202
B12: 7 | C12: Pradnya Shndekar | F12: Diploma in Electricals | H12: 14580 | I12: 174962
B14: Kitchen Staff
B15: 1 | C15: Alka Jadhav | F15: Kitchen | H15: 5347 | I15: 64165
B16: 2 | C16: Kausa Aaji deshmukh | F16: Kitchen | H16: 5347 | I16: 64165
B17: 3 | C17: Archana Jadhav | F17: Kitchen | H17: 5347 | I17: 64165
B18: 4 | C18: Vaijanta narhe | F18: Kitchen | H18: 5347 | I18: 64165
H20: TOTAL Annual | I20: =SUM(I6:I18) -> 1307017

Sheet Students Trained in 2014-15
B4: A] | C4: DIRECT BENEFIFICARY FROM ASHA FOR EDUCATION FUNDS
C6: Diploma in Basic Rural Technology (DBRT) | H6: 39 | J6: www.vigyanashramalumni.wordpress.com | O6: (34 got internship)
C7: Short Term courses | H7: 36
C8: Fab Academy | H8: 4 | J8: www.fabacademy.org
C10: TOTAL | H10: =SUM(H6:H8) -> 79
B12: B] | C12: Indirect beneficiaries (DBRT staff acted as Trainer)
C13: Tally course at Balarampur | H13: 46
C14: IBT Instructors Training at Pabal | H14: 260
C15: Awareness training for SHG women @ Pabal | H15: 130
C16: Fab Camp | H16: 153
C18: TOTAL | H18: =SUM(H13:H16) -> 589
B20: C] | C20: Other contribution by DBRT Staff
C21: i) Technology Development : DBRT staff and students contributed in development of following technologies as part of their project. The projects were guided by DST core staff at VA.
C22: a) Hirada cutter b) Mahua Colector c) Aquaponics d) Hydroponics e) Rice Dehusking machine f) Gray water recycling
C23: www.vigyanashram.wordpress.com
C25: ii) Content Development
C26: DBRT staff supported by Asha for Education also helped in development of various content and Open Educational Resources. They are available on :-
C27: www.learningwhiledoing.in
